fUSD/lending_fUSD_20250211
["ID","MTS","AMOUNT","RATE_DAILY","PERIOD"]
[352756145,1739292679392,-500.0,0.0001726,2]
[352756146,1739292679402,-517.54,0.0001726,2]
[352756147,1739292679411,-1409.01,0.0001726,2]
[352756148,1739292679421,-760.33,0.0001726,2]
[352756149,1739292679431,-1622.42,0.0001726,2]
[352756150,1739292679441,-908.49,0.0001726,2]
[352756151,1739292679451,-500.0,0.0001726,2]
[352756152,1739292679461,-500.0,0.0001726,2]
[352756153,1739292679471,-1394.87,0.0001726,2]
[352756154,1739292679481,-1146.54,0.0001726,2]
[352756155,1739292679490,-2904.03,0.0001726,2]
[352756156,1739292679500,-881.37,0.0001726,2]
[352756157,1739292679509,-500.0,0.0001726,2]
[352756158,1739292679520,-581.55,0.0001726,2]
[352756159,1739292679531,-1246.46,0.0001726,2]
[352756160,1739292679541,-963.63,0.0001726,2]
[352756161,1739292679551,-500.0,0.0001726,2]
[352756162,1739292679562,-500.0,0.0001726,2]
[352756163,1739292679572,-500.0,0.0001726,2]
[352756164,1739292679582,-500.0,0.0001726,2]
[352756165,1739292679591,-500.0,0.0001726,2]
[352756166,1739292679601,-500.0,0.0001726,2]
[352756167,1739292679611,-1035.86,0.0001726,2]
[352756168,1739292679621,-1186.79,0.0001726,2]
[352756169,1739292679631,-1512.18,0.0001726,2]
[352756170,1739292679640,-718.14,0.0001726,2]
[352756171,1739292679650,-500.0,0.0001726,2]
[352756172,1739292679660,-1350.44,0.0001726,2]
[352756173,1739292679671,-500.0,0.0001726,2]
[352756174,1739292679680,-1320.12,0.0001726,2]
[352756175,1739292679690,-500.0,0.0001726,2]
[352756176,1739292679700,-668.38,0.0001726,2]
[352756177,1739292679709,-500.0,0.0001726,2]
[352756178,1739292679719,-500.0,0.0001726,2]
[352756179,1739292679729,-500.0,0.0001726,2]
[352756180,1739292679739,-862.44,0.0001726,2]
[352756181,1739292679749,-1589.93,0.0001726,2]
[352756182,1739292679758,-985.84,0.0001726,2]
[352756183,1739292679770,-1153.41,0.0001726,2]
[352756184,1739292679780,-1534.98,0.0001726,2]
[352756185,1739292679789,-500.0,0.0001726,2]
[352756186,1739292679799,-500.0,0.0001726,2]
[352756187,1739292679810,-1581.96,0.0001726,2]
[352756188,1739292679820,-1598.66,0.0001726,2]
[352756189,1739292679830,-761.15,0.0001726,2]
[352756190,1739292679840,-500.0,0.0001726,2]
[352756191,1739292679849,-737.13,0.0001726,2]
[352756192,1739292679859,-1270.11,0.0001726,2]
[352756193,1739292679869,-992.82,0.0001726,2]
[352756194,1739292679879,-500.0,0.0001726,2]
[352756195,1739292679892,-1121.5,0.0001726,2]
[352756196,1739292679902,-824.99,0.0001726,2]
[352756197,1739292679912,-500.0,0.0001726,2]
[352756198,1739292679922,-1979.99,0.0001726,2]
[352756199,1739292679931,-500.0,0.0001726,2]
[352756200,1739292679941,-1201.69,0.0001726,2]
[352756201,1739292679951,-500.0,0.0001726,2]
[352756202,1739292679962,-500.0,0.0001726,2]
[352756203,1739292679972,-635.61,0.0001726,2]
[352756204,1739292679982,-812.69,0.0001726,2]
[352756205,1739292679991,-500.0,0.0001726,2]
[352756206,1739292680001,-500.0,0.0001726,2]
[352756207,1739292680011,-1000.0,0.0001726,2]
[352756208,1739292680024,-1168.66,0.0001726,2]
[352756209,1739292680034,-666.6,0.00017302,2]
[352756210,1739292680044,-344.78422355,0.00017308,2]
[352756211,1739292680054,-544.44,0.0001732,2]
[352756212,1739292680064,-617.67,0.00017333,2]
[352756213,1739292680074,-671.45,0.00017333,2]
[352756214,1739292680084,-929.9,0.00017333,2]
[352756215,1739292680094,-842.47001529,0.00017337,2]
[352756216,1739292680103,-10395.55057901,0.00017343,3]
[352756217,1739292680114,-70042.87509926,0.0001737,4]
[352756218,1739292680124,-151.0,0.00017397,2]
[352756219,1739292680134,-1043.727911,0.00017397,2]
[352756220,1739292680143,-1232.861141,0.00017397,2]
[352756221,1739292680153,-500.0,0.00017397,2]
[352756222,1739292680163,-195.85961288,0.00017397,2]
[352756223,1739292680175,-403.75,0.00017397,2]
[352756224,1739292680197,-500.0,0.00017397,2]
[352756225,1739292680219,-500.0,0.00017397,2]
[352756226,1739292680243,-658.54,0.00017397,2]
[352756227,1739292680267,-500.0,0.00017397,2]
[352756228,1739292680288,-500.0,0.00017397,2]
[352756229,1739292680311,-500.0,0.00017397,2]
[352756230,1739292680334,-500.0,0.00017397,2]
[352756231,1739292680355,-500.0,0.00017397,2]
[352756232,1739292680376,-708.99,0.00017397,2]
[352756233,1739292680387,-500.0,0.00017397,2]
[352756234,1739292680401,-272.04002782,0.00017397,2]
[352756235,1739292680417,-500.0,0.00017397,2]
[352756236,1739292680432,-620.8,0.00017397,2]
[352756237,1739292680442,-500.0,0.00017397,2]
[352756238,1739292680451,-500.0,0.00017397,2]
[352756239,1739292680461,-500.0,0.00017397,2]
[352756240,1739292680471,-616.82,0.00017397,2]
[352756241,1739292680483,-533.34,0.00017397,2]
[352756242,1739292680493,-500.0,0.00017397,2]
[352756243,1739292680505,-512.37,0.00017397,2]
[352756244,1739292680517,-500.0,0.00017397,2]
[352756245,1739292680526,-500.0,0.00017397,2]
[352756246,1739292680538,-626.01,0.00017397,2]
[352756247,1739292680549,-500.0,0.00017397,2]
[352756248,1739292680559,-593.14,0.00017397,2]
[352756249,1739292680569,-681.21,0.00017397,2]
[352756250,1739292680580,-500.0,0.00017397,2]
[352756251,1739292680590,-500.0,0.00017397,2]
[352756252,1739292680600,-565.98,0.00017397,2]
[352756253,1739292680610,-500.0,0.00017397,2]
[352756254,1739292680620,-610.07,0.00017397,2]
[352756255,1739292680630,-500.0,0.00017397,2]
[352756256,1739292680640,-500.0,0.00017397,2]
[352756257,1739292680650,-500.0,0.00017397,2]
[352756258,1739292680661,-653.33,0.00017397,2]
[352756259,1739292680671,-500.0,0.00017397,2]
[352756260,1739292680681,-500.0,0.00017397,2]
[352756261,1739292680691,-500.0,0.00017397,2]
[352756262,1739292680702,-390.69778275,0.00017397,2]
[352756263,1739292680711,-575.35,0.00017397,2]
[352756264,1739292680721,-543.76,0.00017397,2]
[352756265,1739292680730,-500.0,0.00017397,2]
[352756266,1739292680740,-560.98,0.00017397,2]
[352756267,1739292680750,-500.0,0.00017397,2]
[352756268,1739292680760,-318.28873107,0.00017397,2]
[352756269,1739292680771,-500.0,0.00017397,2]
[352756270,1739292680782,-504.72,0.00017397,2]
[352756271,1739292680791,-500.0,0.00017397,2]
[352756272,1739292680801,-500.0,0.00017397,2]
[352756273,1739292680811,-721.21,0.00017397,2]
[352756274,1739292680820,-500.0,0.00017397,2]
[352756275,1739292680830,-500.0,0.00017397,2]
[352756276,1739292680839,-500.0,0.00017397,2]
[352756277,1739292680849,-500.0,0.00017397,2]
[352756278,1739292680859,-686.28,0.00017397,2]
[352756279,1739292680869,-500.0,0.00017397,2]
[352756280,1739292680881,-628.87,0.00017397,2]
[352756281,1739292680892,-500.0,0.00017397,2]
[352756282,1739292680902,-656.08,0.00017397,2]
[352756283,1739292680912,-500.0,0.00017397,2]
[352756284,1739292680923,-973.03,0.00017397,2]
[352756285,1739292680933,-769.16,0.00017397,2]
[352756286,1739292680943,-510.01838905,0.00017397,2]
[352756287,1739292680954,-500.0,0.00017397,2]
[352756288,1739292680964,-500.0,0.00017397,2]
[352756289,1739292680975,-500.0,0.00017397,2]
[352756290,1739292680985,-2633.29,0.00017397,2]
[352756291,1739292680995,-608.46,0.00017397,2]
[352756292,1739292681005,-500.0,0.00017397,2]
[352756293,1739292681015,-562.42,0.00017397,2]
[352756294,1739292681025,-702.19,0.00017397,2]
[352756295,1739292681035,-500.0,0.00017397,2]
[352756296,1739292681046,-603.78,0.00017397,2]
[352756297,1739292681056,-500.0,0.00017397,2]
[352756298,1739292681066,-500.0,0.00017397,2]
[352756299,1739292681076,-500.0,0.00017397,2]
[352756300,1739292681086,-500.0,0.00017397,2]
[352756301,1739292681096,-500.0,0.00017397,2]
[352756302,1739292681106,-388.36,0.00017397,2]
[352756303,1739292681117,-521.19,0.00017397,2]
[352756304,1739292681126,-1362.81,0.00017397,2]
[352756305,1739292681136,-500.0,0.00017397,2]
[352756306,1739292681146,-500.0,0.00017397,2]
[352756307,1739292681156,-500.0,0.00017397,2]
[352756308,1739292681166,-557.52,0.00017397,2]
[352756309,1739292681175,-1147.2,0.00017397,2]
[352756310,1739292681185,-520.00546841,0.00017397,2]
[352756311,1739292681195,-500.0,0.00017397,2]
[352756312,1739292681205,-500.0,0.00017397,2]
[352756313,1739292681215,-500.0,0.00017397,2]
[352756314,1739292681225,-681.22,0.00017397,2]
[352756315,1739292681235,-765.29,0.00017397,2]
[352756316,1739292681245,-500.0,0.00017397,2]
[352756317,1739292681255,-500.0,0.00017397,2]
[352756318,1739292681264,-500.0,0.00017397,2]
[352756319,1739292681276,-500.0,0.00017397,2]
[352756320,1739292681286,-659.27,0.00017397,2]
[352756321,1739292681297,-500.0,0.00017397,2]
[352756322,1739292681306,-571.46,0.00017397,2]
[352756323,1739292681316,-500.0,0.00017397,2]
[352756324,1739292681326,-567.07,0.00017397,2]
[352756325,1739292681336,-500.0,0.00017397,2]
[352756326,1739292681346,-1328.94,0.00017397,2]
[352756327,1739292681356,-702.14,0.00017397,2]
[352756328,1739292681366,-653.21,0.00017397,2]
[352756329,1739292681376,-500.0,0.00017397,2]
[352756330,1739292681387,-500.0,0.00017397,2]
[352756331,1739292681397,-505.62,0.00017397,2]
[352756332,1739292681407,-781.92,0.00017397,2]
[352756333,1739292681418,-500.0,0.00017397,2]
[352756334,1739292681428,-500.0,0.00017397,2]
[352756335,1739292681438,-768.57,0.00017397,2]
[352756336,1739292681448,-733.07,0.00017397,2]
[352756337,1739292681459,-607.06,0.00017397,2]
[352756338,1739292681469,-708.15,0.00017397,2]
[352756339,1739292681479,-500.0,0.00017397,2]
[352756340,1739292681489,-1118.08,0.00017397,2]
[352756341,1739292681499,-500.0,0.00017397,2]
[352756342,1739292681509,-500.0,0.00017397,2]
[352756343,1739292681518,-1638.68,0.00017397,2]
[352756344,1739292681528,-500.0,0.00017397,2]
[352756345,1739292681538,-618.56,0.00017397,2]
[352756346,1739292681550,-972.23,0.00017397,2]
[352756347,1739292681562,-500.0,0.00017397,2]
[352756348,1739292681572,-1025.95,0.00017397,2]
[352756349,1739292681582,-849.42,0.00017397,2]
[352756350,1739292681592,-589.34,0.00017397,2]
[352756351,1739292681602,-623.19,0.00017397,2]
[352756352,1739292681612,-949.12,0.00017397,2]
[352756353,1739292681622,-774.19,0.00017397,2]
[352756354,1739292681632,-592.84,0.00017397,2]
[352756355,1739292681643,-897.44,0.00017397,2]
[352756356,1739292681653,-500.0,0.00017397,2]
[352756357,1739292681663,-1236.71,0.00017397,2]
[352756358,1739292681673,-628.8247278,0.00017397,2]
[352756359,1739292681683,-1146.12,0.00017397,2]
[352756360,1739292681693,-877.02,0.00017397,2]
[352756361,1739292681703,-500.0,0.00017397,2]
[352756362,1739292681713,-500.0,0.00017397,2]
[352756363,1739292681722,-636.96,0.00017397,2]
[352756364,1739292681732,-851.21,0.00017397,2]
[352756365,1739292681742,-1026.57,0.00017397,2]
[352756366,1739292681752,-1722.06,0.00017397,2]
[352756367,1739292681762,-755.82,0.00017397,2]
[352756368,1739292681772,-500.0,0.00017397,2]
[352756369,1739292681783,-500.0,0.00017397,2]
[352756370,1739292681793,-1007.91,0.00017397,2]
[352756371,1739292681803,-1556.32,0.00017397,2]
[352756372,1739292681812,-743.69,0.00017397,2]
[352756373,1739292681822,-787.8,0.00017397,2]
[352756374,1739292681832,-500.0,0.00017397,2]
[352756375,1739292681842,-775.23,0.00017397,2]
[352756376,1739292681852,-1296.08,0.00017397,2]
[352756377,1739292681862,-3453.19,0.00017397,2]
[352756378,1739292681876,-1077.77,0.00017397,2]
[352756379,1739292681888,-903.8,0.00017397,2]
[352756380,1739292681898,-1620.87,0.00017397,2]
[352756381,1739292681907,-1360.37,0.00017397,2]
[352756382,1739292681919,-871.16,0.00017397,2]
[352756383,1739292681930,-1044.51,0.00017397,2]
[352756384,1739292681940,-1892.93,0.00017397,2]
[352756385,1739292681950,-1187.32,0.00017397,2]
[352756386,1739292681961,-1128.96,0.00017397,2]
[352756387,1739292681971,-500.0,0.00017397,2]
[352756388,1739292681981,-664.21,0.00017397,2]
[352756389,1739292681991,-1085.95,0.00017397,2]
[352756390,1739292682000,-831.29,0.00017397,2]
[352756391,1739292682010,-1315.41,0.00017397,2]
[352756392,1739292682022,-500.0,0.00017397,2]
[352756393,1739292682032,-1736.09,0.00017397,2]
[352756394,1739292682042,-1449.55,0.00017397,2]
[352756395,1739292682052,-792.28,0.00017397,2]
[352756396,1739292682062,-1153.98,0.00017397,2]
[352756397,1739292682073,-500.0,0.00017397,2]
[352756398,1739292682084,-500.0,0.00017397,2]
[352756399,1739292682094,-1628.97,0.00017397,2]
[352756400,1739292682104,-1363.01,0.00017397,2]
[352756401,1739292682114,-2696.96,0.00017397,2]
[352756402,1739292682125,-500.0,0.00017397,2]
[352756403,1739292682136,-1143.92,0.00017397,2]
[352756404,1739292682146,-628.01,0.00017397,2]
[352756405,1739292682157,-1164.3,0.00017397,2]
[352756406,1739292682167,-500.0,0.00017397,2]
[352756407,1739292682177,-1186.05,0.00017397,2]
[352756408,1739292682187,-1316.05,0.00017397,2]
[352756409,1739292682197,-507.5,0.00017397,2]
[352756410,1739292682207,-1204.14,0.00017397,2]
[352756411,1739292682218,-237.36488167,0.00017397,2]
[352756412,1739292682228,-393.66615353,0.00017397,2]
[352756413,1739292682238,-2709.34,0.00017397,2]
[352756414,1739292682248,-2432.62,0.00017397,2]
[352756415,1739292682258,-1383.14,0.00017397,2]
[352756416,1739292682269,-1113.99,0.00017397,2]
[352756417,1739292682280,-516.51,0.00017397,2]
[352756418,1739292682290,-770.35,0.00017397,2]
[352756419,1739292682300,-3406.84,0.00017397,2]
[352756420,1739292682310,-1152.94,0.00017397,2]
[352756421,1739292682321,-1081.2,0.00017397,2]
[352756422,1739292682331,-500.0,0.00017397,2]
[352756423,1739292682341,-2107.97,0.00017397,2]
[352756424,1739292682351,-500.0,0.00017397,2]
[352756425,1739292682361,-1266.65,0.00017397,2]
[352756426,1739292682372,-694.27,0.00017397,2]
[352756427,1739292682382,-500.0,0.00017397,2]
[352756428,1739292682393,-517.54,0.00017397,2]
[352756429,1739292682403,-1409.01,0.00017397,2]
[352756430,1739292682413,-760.33,0.00017397,2]
[352756431,1739292682423,-1622.42,0.00017397,2]
[352756432,1739292682433,-908.49,0.00017397,2]
[352756433,1739292682443,-500.0,0.00017397,2]
[352756434,1739292682454,-500.0,0.00017397,2]
[352756435,1739292682463,-1394.87,0.00017397,2]
[352756436,1739292682473,-1146.54,0.00017397,2]
[352756437,1739292682483,-2904.03,0.00017397,2]
[352756438,1739292682493,-881.37,0.00017397,2]
[352756439,1739292682503,-500.0,0.00017397,2]
[352756440,1739292682513,-581.55,0.00017397,2]
[352756441,1739292682525,-1246.46,0.00017397,2]
[352756442,1739292682536,-963.63,0.00017397,2]
[352756443,1739292682546,-500.0,0.00017397,2]
[352756444,1739292682556,-196.44811602,0.00017397,2]
[352756445,1739292682566,-500.0,0.00017397,2]
[352756446,1739292682576,-500.0,0.00017397,2]
[352756447,1739292682587,-500.0,0.00017397,2]
[352756448,1739292682789,-500.0,0.00017397,2]
[352756449,1739292682800,-1035.86,0.00017397,2]
[352756450,1739292682810,-1186.79,0.00017397,2]
[352756451,1739292682819,-1512.18,0.00017397,2]
[352756452,1739292682829,-718.14,0.00017397,2]
[352756453,1739292682840,-500.0,0.00017397,2]
[352756454,1739292682850,-1350.44,0.00017397,2]
[352756455,1739292682859,-500.0,0.00017397,2]
[352756456,1739292682869,-1320.12,0.00017397,2]
[352756457,1739292682883,-500.0,0.00017397,2]
[352756458,1739292682892,-668.38,0.00017397,2]
[352756459,1739292682902,-500.0,0.00017397,2]
[352756460,1739292682912,-500.0,0.00017397,2]
[352756461,1739292682922,-500.0,0.00017397,2]
[352756462,1739292682931,-862.44,0.00017397,2]
[352756463,1739292682941,-1589.93,0.00017397,2]
[352756464,1739292682952,-985.84,0.00017397,2]
[352756465,1739292682962,-1153.41,0.00017397,2]
[352756466,1739292682971,-1534.98,0.00017397,2]
[352756467,1739292682981,-500.0,0.00017397,2]
[352756468,1739292682990,-500.0,0.00017397,2]
[352756469,1739292683000,-1581.96,0.00017397,2]
[352756470,1739292683010,-1598.66,0.00017397,2]
[352756471,1739292683020,-761.15,0.00017397,2]
[352756472,1739292683030,-500.0,0.00017397,2]
[352756473,1739292683039,-737.13,0.00017397,2]
[352756474,1739292683050,-1270.11,0.00017397,2]
[352756475,1739292683060,-992.82,0.00017397,2]
[352756476,1739292683069,-500.0,0.00017397,2]
[352756477,1739292683080,-1121.5,0.00017397,2]
[352756478,1739292683090,-824.99,0.00017397,2]
[352756479,1739292683099,-500.0,0.00017397,2]
[352756480,1739292683109,-1979.99,0.00017397,2]
[352756481,1739292683119,-500.0,0.00017397,2]
[352756482,1739292683128,-1201.69,0.00017397,2]
[352756483,1739292683139,-500.0,0.00017397,2]
[352756484,1739292683149,-500.0,0.00017397,2]
[352756485,1739292683160,-635.61,0.00017397,2]
[352756486,1739292683170,-812.69,0.00017397,2]
[352756487,1739292683180,-500.0,0.00017397,2]
[352756488,1739292683190,-500.0,0.00017397,2]
[352756489,1739292683200,-1000.0,0.00017397,2]
[352756490,1739292683210,-1168.66,0.00017397,2]
[352756491,1739292683220,-500.0,0.00017417,2]
[352756492,1739292683230,-500.0,0.00017425,2]
[352756493,1739292683240,-500.0,0.00017425,2]
[352756494,1739292683250,-500.0,0.00017425,2]
[352756495,1739292683261,-666.6,0.00017439,2]
[352756496,1739292683274,-17562.55930623,0.0001745,3]
[352756497,1739292683284,-156.14492207,0.00017456,2]
[352756498,1739292683295,-617.67,0.0001747,2]
[352756499,1739292683306,-671.45,0.0001747,2]
[352756500,1739292683317,-929.9,0.0001747,2]
[352756501,1739292683326,-642.07273514,0.000175,2]
[352756502,1739292683336,-1782.8,0.000175,2]
[352756503,1739292683346,-10395.55057901,0.00017524,4]
[352756504,1739292683356,-203.0,0.0001753,2]
[352756505,1739292683365,-1000.0,0.00017533,2]
[352756506,1739292683375,-1043.727911,0.00017534,2]
[352756507,1739292683384,-1232.861141,0.00017534,2]
[352756508,1739292683394,-500.0,0.00017534,2]
[352756509,1739292683403,-500.0,0.00017534,2]
[352756510,1739292683413,-500.0,0.00017534,2]
[352756511,1739292683422,-658.54,0.00017534,2]
[352756512,1739292683432,-500.0,0.00017534,2]
[352756513,1739292683441,-500.0,0.00017534,2]
[352756514,1739292683451,-500.0,0.00017534,2]
[352756515,1739292683460,-500.0,0.00017534,2]
[352756516,1739292683469,-708.99,0.00017534,2]
[352756517,1739292683479,-500.0,0.00017534,2]
[352756518,1739292683488,-612.28298329,0.00017534,2]
[352756519,1739292683497,-620.8,0.00017534,2]
[352756520,1739292683507,-500.0,0.00017534,2]
[352756521,1739292683516,-500.0,0.00017534,2]
[352756522,1739292683527,-500.0,0.00017534,2]
[352756523,1739292683536,-616.82,0.00017534,2]
[352756524,1739292683547,-533.34,0.00017534,2]
[352756525,1739292683556,-500.0,0.00017534,2]
[352756526,1739292683565,-512.37,0.00017534,2]
[352756527,1739292683576,-500.0,0.00017534,2]
[352756528,1739292683585,-500.0,0.00017534,2]
[352756529,1739292683595,-626.01,0.00017534,2]
[352756530,1739292683604,-505.48306913,0.00017534,2]
[352756531,1739292683613,-593.14,0.00017534,2]
[352756532,1739292683622,-681.21,0.00017534,2]
[352756533,1739292683632,-500.0,0.00017534,2]
[352756534,1739292683642,-500.0,0.00017534,2]
[352756535,1739292683651,-565.98,0.00017534,2]
[352756536,1739292683661,-500.0,0.00017534,2]
[352756537,1739292683671,-610.07,0.00017534,2]
[352756538,1739292683680,-500.0,0.00017534,2]
[352756539,1739292683689,-500.0,0.00017534,2]
[352756540,1739292683699,-653.33,0.00017534,2]
[352756541,1739292683709,-568.75733476,0.00017534,2]
[352756542,1739292683718,-500.0,0.00017534,2]
[352756543,1739292683728,-500.0,0.00017534,2]
[352756544,1739292683737,-575.35,0.00017534,2]
[352756545,1739292683747,-543.76,0.00017534,2]
[352756546,1739292683756,-385.14,0.00017534,2]
[352756547,1739292683766,-560.98,0.00017534,2]
[352756548,1739292683777,-500.0,0.00017534,2]
[352756549,1739292683788,-500.0,0.00017534,2]
[352756550,1739292683797,-504.72,0.00017534,2]
[352756551,1739292683807,-500.0,0.00017534,2]
[352756552,1739292683816,-500.0,0.00017534,2]
[352756553,1739292683826,-721.21,0.00017534,2]
[352756554,1739292683835,-500.0,0.00017534,2]
[352756555,1739292683845,-500.0,0.00017534,2]
[352756556,1739292683854,-500.0,0.00017534,2]
[352756557,1739292683864,-500.0,0.00017534,2]
[352756558,1739292683875,-686.28,0.00017534,2]
[352756559,1739292683886,-500.0,0.00017534,2]
[352756560,1739292683895,-628.87,0.00017534,2]
[352756561,1739292683904,-500.0,0.00017534,2]
[352756562,1739292683914,-656.08,0.00017534,2]
[352756563,1739292683925,-500.0,0.00017534,2]
[352756564,1739292683934,-973.03,0.00017534,2]
[352756565,1739292683944,-769.16,0.00017534,2]
[352756566,1739292683954,-500.0,0.00017534,2]
[352756567,1739292683965,-500.0,0.00017534,2]
[352756568,1739292683975,-500.0,0.00017534,2]
[352756569,1739292683985,-2633.29,0.00017534,2]
[352756570,1739292683994,-608.46,0.00017534,2]
[352756571,1739292684008,-500.0,0.00017534,2]
[352756572,1739292684046,-562.42,0.00017534,2]
[352756573,1739292684095,-702.19,0.00017534,2]
[352756574,1739292684129,-500.0,0.00017534,2]
[352756575,1739292684152,-603.78,0.00017534,2]
[352756576,1739292684173,-500.0,0.00017534,2]
[352756577,1739292684196,-156.51704904,0.00017534,2]
[352756578,1739292684222,-500.0,0.00017534,2]
[352756579,1739292684242,-500.0,0.00017534,2]
[352756580,1739292684264,-500.0,0.00017534,2]
[352756581,1739292684305,-521.19,0.00017534,2]
[352756582,1739292684315,-1362.81,0.00017534,2]
[352756583,1739292684324,-598.71623521,0.00017534,2]
[352756584,1739292684334,-500.0,0.00017534,2]
[352756585,1739292684343,-500.0,0.00017534,2]
[352756586,1739292684352,-557.52,0.00017534,2]
[352756587,1739292684362,-1147.2,0.00017534,2]
[352756588,1739292684371,-500.0,0.00017534,2]
[352756589,1739292684380,-500.0,0.00017534,2]
[352756590,1739292684390,-500.0,0.00017534,2]
[352756591,1739292684399,-681.22,0.00017534,2]
[352756592,1739292684408,-765.29,0.00017534,2]
[352756593,1739292684417,-500.0,0.00017534,2]
[352756594,1739292684427,-500.0,0.00017534,2]
[352756595,1739292684437,-500.0,0.00017534,2]
[352756596,1739292684447,-500.0,0.00017534,2]
[352756597,1739292684456,-659.27,0.00017534,2]
[352756598,1739292684467,-500.0,0.00017534,2]
[352756599,1739292684476,-571.46,0.00017534,2]
[352756600,1739292684486,-500.0,0.00017534,2]
[352756601,1739292684495,-567.07,0.00017534,2]
[352756602,1739292684505,-500.0,0.00017534,2]
[352756603,1739292684514,-1328.94,0.00017534,2]
[352756604,1739292684526,-702.14,0.00017534,2]
[352756605,1739292684535,-653.21,0.00017534,2]
[352756606,1739292684545,-500.0,0.00017534,2]
[352756607,1739292684555,-500.0,0.00017534,2]
[352756608,1739292684565,-505.62,0.00017534,2]
[352756609,1739292684575,-781.92,0.00017534,2]
[352756610,1739292684584,-317.25875036,0.00017534,2]
[352756611,1739292684594,-500.0,0.00017534,2]
[352756612,1739292684603,-768.57,0.00017534,2]
[352756613,1739292684613,-733.07,0.00017534,2]
[352756614,1739292684623,-607.06,0.00017534,2]
[352756615,1739292684634,-708.15,0.00017534,2]
[352756616,1739292684643,-500.0,0.00017534,2]
[352756617,1739292684653,-1118.08,0.00017534,2]
[352756618,1739292684662,-500.0,0.00017534,2]
[352756619,1739292684671,-500.0,0.00017534,2]
[352756620,1739292684680,-1638.68,0.00017534,2]
[352756621,1739292684690,-500.0,0.00017534,2]
[352756622,1739292684700,-972.23,0.00017534,2]
[352756623,1739292684710,-500.0,0.00017534,2]
[352756624,1739292684720,-1025.95,0.00017534,2]
[352756625,1739292684730,-849.42,0.00017534,2]
[352756626,1739292684739,-589.34,0.00017534,2]
[352756627,1739292684749,-623.19,0.00017534,2]
[352756628,1739292684758,-949.12,0.00017534,2]
[352756629,1739292684768,-774.19,0.00017534,2]
[352756630,1739292684780,-592.84,0.00017534,2]
[352756631,1739292684790,-897.44,0.00017534,2]
[352756632,1739292684800,-500.0,0.00017534,2]
[352756633,1739292684812,-1236.71,0.00017534,2]
[352756634,1739292684822,-1146.12,0.00017534,2]
[352756635,1739292684832,-877.02,0.00017534,2]
[352756636,1739292684842,-446.34454216,0.00017534,2]
[352756637,1739292684851,-500.0,0.00017534,2]
[352756638,1739292684860,-636.96,0.00017534,2]
[352756639,1739292684870,-851.21,0.00017534,2]
[352756640,1739292684880,-1026.57,0.00017534,2]
[352756641,1739292684892,-1722.06,0.00017534,2]
[352756642,1739292684901,-755.82,0.00017534,2]
[352756643,1739292684911,-500.0,0.00017534,2]
[352756644,1739292684922,-500.0,0.00017534,2]